Cogmind - Beta 10.1 @@@ ROGUE MODE // 2020.10.15 @ 20:23:07 Player: CrossedViper Result: Destroyed by P1-3CE with P1-3CE's Gatling Flakker Performance ------------- Evolutions (1) 500 Regions Visited (6) 1200 Robots Destroyed (41) 205 Value Destroyed (403) 403 Prototype IDs (28) 560 Alien Tech Used (0) 0 Bonus (-536) -536 TOTAL SCORE: 2332 Bonus ------- Follower Combat Kills 143 Aligned with FarCom 300 Friendly Fire -979 Cogmind --------- Core Integrity 0/400 Matter 216/300 Energy 250/250 System Corruption 0% Temperature Cool (0) Movement Walking (100) Location -8/Mines Parts ------- > --- POWER (1) -------- Ion Engine > --- PROPULSION (3) --- Advanced Myomer Leg Potential Leg Potential Leg > --- UTILITY (2) ------ Large Storage Unit Large Storage Unit > --- WEAPON (3) ------- 8R-AWN's Boregun 8R-AWN's Boregun > --- INVENTORY (16) --- Experimental Heat Sink Advanced Core Analyzer Improved Armor Integrity Analyzer Makeshift Armor Plating EX Chip 1 EX Chip 1 EX Chip 2 System Purifier AWS/Gauss Grenade Launcher Field Lobotomy Kit Makeshift Hammer Signal Generator Deploy-a-Sentry Peak State ------------ > --- POWER ------------ Ion Engine > --- PROPULSION ------- Advanced Myomer Leg Potential Leg Potential Leg > --- UTILITY ---------- Large Storage Unit Large Storage Unit > --- WEAPON ----------- AWS/EX-DEC 8R-AWN's Boregun > --- INVENTORY -------- Experimental Heat Sink Advanced Core Analyzer Improved Armor Integrity Analyzer Makeshift Armor Plating EX Chip 1 EX Chip 1 EX Chip 2 System Purifier AWS/Gauss 8R-AWN's Boregun Grenade Launcher Field Lobotomy Kit Makeshift Hammer Signal Generator Deploy-a-Sentry [Rating: 70] Favorites ----------- Power Light Ion Engine Engine Light Ion Engine Propulsion Aluminum Leg Leg Aluminum Leg Utility Large Storage Unit Device Improved Heat Sink Storage Large Storage Unit Weapon Makeshift Hammer Energy Gun Beamcaster Ballistic Gun Light Assault Rifle Launcher Grenade Launcher Impact Weapon Makeshift Hammer Build | -11 -10 -10 -9 -9 -9 -8 ------- Run | Scr Mat Min Mat Min Exi Min Slots Evolved 2 | . . . 2 . . . Power . | . . . . . . . Propulsion 1 | . . . 1 . . . Utility . | . . . . . . . Weapon 1 | . . . 1 . . . Parts Attached 45 | . 8 4 3 4 23 3 Power 4 | . 2 . . 1 1 . Engine 4 | . 2 . . 1 1 . Core . | . . . . . . . Reactor . | . . . . . . . Propulsion 14 | . 5 1 2 2 4 . Treads . | . . . . . . . Leg 14 | . 5 1 2 2 4 . Wheel . | . . . . . . . Hover . | . . . . . . . Flight . | . . . . . . . Utility 7 | . . 1 1 . 5 . Device 4 | . . 1 . . 3 . Storage 3 | . . . 1 . 2 . Processor . | . . . . . . . Hackware . | . . . . . . . Protection . | . . . . . . . Artifact . | . . . . . . . Weapon 20 | . 1 2 . 1 13 3 Energy Gun 6 | . . 1 . . 4 1 Energy Cannon . | . . . . . . . Ballistic Gun 8 | . 1 . . 1 4 2 Ballistic Cannon . | . . . . . . . Launcher 1 | . . . . . 1 . Special Weapon . | . . . . . . . Impact Weapon 5 | . . 1 . . 4 . Slashing Weapon . | . . . . . . . Piercing Weapon . | . . . . . . . Special Melee Weapon . | . . . . . . . Unidentified Prototypes 6 | . . . . . 6 . Parts Lost 7 | . 3 . . . 4 . Power 1 | . . . . . 1 . Propulsion 1 | . 1 . . . . . Utility . | . . . . . . . Weapon 5 | . 2 . . . 3 . Highest Loss Streak 3 | . 2 . . . 3 . Average Slot Usage (%) 89 | . 78 90 84 92 90 88 Engine 12 | . 13 14 11 11 11 11 Leg 30 | . 27 28 29 33 32 33 Device 7 | . . 9 11 11 4 . Storage 14 | . 14 14 11 11 17 22 Energy Gun 6 | . . 9 11 11 2 1 Ballistic Gun 8 | . 22 5 . 4 11 12 Impact Weapon 8 | . . 8 11 11 9 8 Naked Turns . | . . . . . . . Heaviest Build 53 | 11 11 16 28 32 53 53 Greatest Support 90 | 20 20 25 35 35 90 90 Greatest Overweight (x) . | . . . . . . . Average Overweight (x) . | . . . . . . . Largest Inventory Capacity 16 | . 6 6 10 10 16 16 Average Capacity 9 | . 6 6 7 10 13 16 Most Carried 16 | . 6 6 7 10 16 16 Average Carried 8 | . 5 6 6 8 12 15 Final Capacity 16 | 6 6 6 10 10 16 16 Final Carried 16 | 6 6 6 7 10 16 15 Class Distribution -------------------- 56% | Scavenger-Mutant 42% | Mutant Dominant Class ---------------- Mutant | -10/Materials Scavenger-Mutant | -10/Mines Scavenger-Mutant | -9/Materials Scavenger-Mutant | -9/Mines Mutant | -9/Exiles Mutant | -8/Mines Resources | -11 -10 -10 -9 -9 -9 -8 ----------- Run | Scr Mat Min Mat Min Exi Min Matter Collected 738 | 200 118 82 30 52 256 . Remotely . | . . . . . . . Salvage Created 1101 | . 201 261 53 100 457 29 Parts 103 | . 20 25 4 4 46 4 Haulers Intercepted . | . . . . . . . Recyclers Shooed 2 | . 2 . . . . . Parts Field Recycled . | . . . . . . . Retrieved Matter . | . . . . . . . Parts Self-Destructed . | . . . . . . . Prevented . | . . . . . . . Kills | -11 -10 -10 -9 -9 -9 -8 ------- Run | Scr Mat Min Mat Min Exi Min Combat Hostiles Destroyed 17 | . 6 2 1 1 6 1 Melee 1 | . . 1 . . . . Guns 14 | . 6 1 1 1 4 1 AOE 2 | . . . . . 2 . Classes Destroyed 10 | . 3 4 . . 3 . Worker 2 | . . 1 . . . 1 Builder 1 | . . 1 . . . . Tunneler 3 | . 1 2 . . . . Recycler 1 | . . 1 . . . . Turret 1 | . . . . . 1 . Swarmer 6 | . 3 1 . 1 . 1 Grunt 5 | . 3 . . 1 1 . Sentry 2 | . . 1 1 . . . Zionite 7 | . . . . . 7 . Assembled 7 | . . . . . 7 . Thug 2 | . . 1 . 1 . . Best Kill Streak 9 | . 4 2 1 1 9 1 Combat Bots Only 4 | . 3 1 1 1 4 1 Max Kills in Single Turn 2 | . 1 1 1 1 2 1 Gunslinging . | . . . . . . . Exploded 1 | . . . . . 1 . Melee 1 | . . 1 . . . . Uniques/NPCs Destroyed 4 | . . . . . 4 . EX-HEX (-9/Exiles) 8R-AWN (-9/Exiles) EX-DEC (-9/Exiles) EX-BIN (-9/Exiles) Combat | -11 -10 -10 -9 -9 -9 -8 -------- Run | Scr Mat Min Mat Min Exi Min Damage Taken 2334 | . 480 53 . 10 956 835 Core 492 | . 74 . . . 151 267 Absorbed by Shields . | . . . . . . . Core Remaining (%) 85 | 100 . 70 . . . . Volleys Fired 109 | . 49 23 4 5 22 6 Largest 2 | . 2 1 1 2 1 2 Hottest 95 | . 40 75 75 95 75 60 Shots Fired 242 | . 84 23 4 9 106 16 Gun 238 | . 84 23 4 9 102 16 Cannon . | . . . . . . . Launcher 4 | . . . . . 4 . Special . | . . . . . . . Kinetic 194 | . 84 11 . 4 85 10 Thermal 38 | . . 12 4 5 17 . Explosive 4 | . . . . . 4 . Electromagnetic 6 | . . . . . . 6 Robot Hit Streak 22 | . 10 5 2 6 22 13 Robot Miss Streak 4 | . 4 3 1 1 2 1 Penetration Max . | . . . . . . . Secondary Targets . | . . . . . . . Autonomous 92 | . . . . . 84 8 Shots Hit Robots 179 | . 50 15 3 7 88 16 Core Hits 79 | . 19 12 1 4 39 4 Critical Hits 5 | . . . . . 3 2 Critical Kills . | . . . . . . . Critical Parts Destroyed 2 | . . . . . 1 1 Melee Attacks 3 | . . 1 . . . 2 Impact 3 | . . 1 . . . 2 Slashing . | . . . . . . . Piercing . | . . . . . . . Sneak Attacks 2 | . . . . . . 2 Combat Hostiles . | . . . . . . . Follow-up Attacks . | . . . . . . . Damage Inflicted 3766 | . 429 253 65 136 2635 248 Guns 3249 | . 429 234 65 136 2300 85 Cannons . | . . . . . . . Explosions 335 | . . . . . 335 . Melee 182 | . . 19 . . . 163 Ramming . | . . . . . . . Kinetic 2715 | . 429 67 . 31 2103 85 Thermal 534 | . . 167 65 105 197 . Explosive 335 | . . . . . 335 . Electromagnetic . | . . . . . . . Impact 182 | . . 19 . . . 163 Slashing . | . . . . . . . Piercing . | . . . . . . . Highest Corruption . | . . . . . . . Average Corruption . | . . . . . . . Corruption Purged . | . . . . . . . Overload Shots . | . . . . . . . Overflow Damage 43 | . . . . . 14 29 Projectiles . | . . . . . . . Explosions 14 | . . . . . 14 . Melee 29 | . . . . . . 29 Knockbacks . | . . . . . . . Impact . | . . . . . . . Kinetic . | . . . . . . . Secondary . | . . . . . . . Self-Inflicted Damage . | . . . . . . . Shots . | . . . . . . . Rammed . | . . . . . . . Targets Rammed . | . . . . . . . Kicked . | . . . . . . . Crushed . | . . . . . . . Highest Temperature 18 | . 18 18 . . . 7 Average Temperature 7 | . 7 7 . . . 7 Received Heat Transfer 210 | . 201 9 . . . . Siege Activations . | . . . . . . . Robots Corrupted . | . . . . . . . Combat Hostiles . | . . . . . . . Parts Fried . | . . . . . . . Impact Corruptions 1 | . . . . . . 1 Robots Melted . | . . . . . . . Combat Hostiles . | . . . . . . . Parts Melted 7 | . . 1 . . 6 . Heat Transferred 802 | . . 296 111 185 210 . Parts Sabotaged . | . . . . . . . Parts Stolen . | . . . . . . . Parts Stripped . | . . . . . . . Power Chain Reactions . | . . . . . . . Missiles Intercepted . | . . . . . . . Alert | -11 -10 -10 -9 -9 -9 -8 ------- Run | Scr Mat Min Mat Min Exi Min Peak Influence 239 | . 197 142 109 239 . 37 Initial 76 | . . 76 39 42 . . Average 103 | . 83 89 60 160 . 4 Maximum Alert Level 1 | . . . . 1 . . Low Security (%) 96 | . 100 100 100 87 . 100 Level 1 3 | . . . . 12 . . Level 2 . | . . . . . . . Level 3 . | . . . . . . . Level 4 . | . . . . . . . Level 5 . | . . . . . . . High Security . | . . . . . . . Max Security . | . . . . . . . Squads Dispatched 7 | . 3 . 3 1 . . Investigation 4 | . 2 . 2 . . . Extermination . | . . . . . . . Reinforcement 2 | . 1 . 1 . . . Assault 1 | . . . . 1 . . Garrison . | . . . . . . . Intercept . | . . . . . . . Construction Impeded . | . . . . . . . Haulers Reinforced . | . . . . . . . Stealth | -11 -10 -10 -9 -9 -9 -8 --------- Run | Scr Mat Min Mat Min Exi Min Distress Signals 3 | . 1 . 2 . . . Communications Jammed . | . . . . . . . Distress Signals . | . . . . . . . Times Spotted 45 | . 13 5 3 5 18 1 Peak Tracking Total 7 | . 4 2 1 4 7 1 Tactical Retreats 2 | . . . . 1 1 . Traps | -11 -10 -10 -9 -9 -9 -8 ------- Run | Scr Mat Min Mat Min Exi Min Traps Triggered 1 | . 1 . . . . . Indirectly . | . . . . . . . Trap Hack Attempts . | . . . . . . . Triggered . | . . . . . . . Disarmed . | . . . . . . . Reprogrammed . | . . . . . . . Reused . | . . . . . . . Traps Extracted . | . . . . . . . Installed . | . . . . . . . Triggered . | . . . . . . . Machines | -11 -10 -10 -9 -9 -9 -8 ---------- Run | Scr Mat Min Mat Min Exi Min Machines Disabled 15 | . . . . 3 12 . Max in Single Turn 2 | . . . . . 2 . Machines Sabotaged . | . . . . . . . Garrisons Compromised . | . . . . . . . Overloaded Fab Kills . | . . . . . . . Fab Network Shutdowns . | . . . . . . . Hacking | -11 -10 -10 -9 -9 -9 -8 --------- Run | Scr Mat Min Mat Min Exi Min Machines Accessed 6 | . 2 . 2 . 2 . Terminals 3 | . 1 . 2 . . . Fabricators . | . . . . . . . Repair Stations . | . . . . . . . Recycling Units 1 | . 1 . . . . . Scanalyzers . | . . . . . . . Garrison Access . | . . . . . . . Total Hacks 12 | . 5 . 5 . 2 . Successful 5 | . 3 . . . 2 . Failed 7 | . 2 . 5 . . . Catastrophic 1 | . . . 1 . . . Database Lockouts . | . . . . . . . Manual 8 | . 2 . 5 . 1 . Terminals 9 | . 4 . 5 . . . Fabricators . | . . . . . . . Repair Stations . | . . . . . . . Recycling Units 1 | . 1 . . . . . Scanalyzers . | . . . . . . . Garrison Access . | . . . . . . . Terminal Hacks 4 | . 2 . . . 2 . Record 1 | . . . . . 1 . Branch Access Points 1 | . 1 . . . . . Recall Investigation 1 | . 1 . . . . . EX-Prototype ID Bank 1 | . . . . . 1 . Fabricator Hacks . | . . . . . . . Repair Station Hacks . | . . . . . . . Recycling Unit Hacks . | . . . . . . . Scanalyzer . | . . . . . . . Garrison Access Hacks . | . . . . . . . Unauthorized Hacks 1 | . 1 . . . . . Terminals . | . . . . . . . Fabricators . | . . . . . . . Repair Stations . | . . . . . . . Recycling Units 1 | . 1 . . . . . Tunnel 1 | . 1 . . . . . Scanalyzers . | . . . . . . . Garrison Access . | . . . . . . . Data Cores Recovered . | . . . . . . . Used . | . . . . . . . Hacking Detections 3 | . 1 . 2 . . . Full Trace Events 2 | . 1 . 1 . . . Feedback Events . | . . . . . . . Feedback Blocked . | . . . . . . . Robot Schematics Acquired . | . . . . . . . Robots Built . | . . . . . . . Matter . | . . . . . . . Time . | . . . . . . . Total Robot Build Rating . | . . . . . . . Part Schematics Acquired . | . . . . . . . Parts Built . | . . . . . . . Matter . | . . . . . . . Time . | . . . . . . . Total Part Build Rating . | . . . . . . . Parts Repaired . | . . . . . . . Time . | . . . . . . . Parts Recycled . | . . . . . . . Recycled Matter . | . . . . . . . Retrieved Matter . | . . . . . . . Retrieved Components . | . . . . . . . Parts Scanalyzed . | . . . . . . . Part Schematics Acquired . | . . . . . . . Parts Damaged . | . . . . . . . Bothacking | -11 -10 -10 -9 -9 -9 -8 ------------ Run | Scr Mat Min Mat Min Exi Min Used RIF Installer . | . . . . . . . Robots Hacked . | . . . . . . . Non-combat . | . . . . . . . Combat . | . . . . . . . Robot Hacks Applied . | . . . . . . . Relay Couplers Released . | . . . . . . . Robots Rewired . | . . . . . . . Allies Hacked . | . . . . . . . Hacks Repelled . | . . . . . . . Allies | -11 -10 -10 -9 -9 -9 -8 -------- Run | Scr Mat Min Mat Min Exi Min Total Allies 4 | . . 3 . 1 . . Largest Group 3 | . . 3 3 3 1 . Highest-Rated Group 63 | . . 40 40 63 16 . Highest-Rated Ally 31 | . . 16 16 31 16 . Total Orders . | . . . . . . . Ally Attacks 38 | . . 7 8 20 3 . Total Damage 681 | . . 80 94 507 . . Kills 12 | . . 3 2 7 . . Allies Corrupted . | . . . . . . . Allies Melted . | . . . . . . . Intel | -11 -10 -10 -9 -9 -9 -8 ------- Run | Scr Mat Min Mat Min Exi Min Robot Analysis Total . | . . . . . . . Derelict Logs Recovered 3 | . . 2 . 1 . . Drone Launches . | . . . . . . . Drone Recoveries . | . . . . . . . Exploration | -11 -10 -10 -9 -9 -9 -8 ------------- Run | Scr Mat Min Mat Min Exi Min Turns Passed 2476 | . 251 678 204 574 663 106 Spaces Moved 1833 | 1 94 519 154 452 534 79 Core . | . . . . . . . Treads . | . . . . . . . Legs 1833 | 1 94 519 154 452 534 79 Wheels . | . . . . . . . Hover . | . . . . . . . Flight . | . . . . . . . Fastest Speed 100 | 120 120 120 120 120 100 100 Average Speed 114 | 120 120 120 120 120 104 100 Slowest Speed 120 | 120 120 120 120 120 120 100 Overloaded Moves . | . . . . . . . Propulsion Burnouts . | . . . . . . . Robots Hopped . | . . . . . . . Cave-ins Triggered . | . . . . . . . Exploration Rate (%) 42 | 2 23 77 13 74 88 21 Regions Visited 6 Branch Regions 4 Pre-discovered Areas 3 | . 1 1 . . 1 . Known Exits Taken 3 | . 1 . 1 . 1 . Unknown Exits Taken 3 | 1 . 1 . 1 . . Scrap Searched 4 | . . 1 . 2 . 1 Spaces Dug . | . . . . . . . Terrain Destroyed 30 | . . . . . 27 3 Melee . | . . . . . . . Projectile 25 | . . . . . 22 3 AOE 5 | . . . . . 5 . Terrain Rammed . | . . . . . . . Walls Destroyed . | . . . . . . . Machines Disabled . | . . . . . . . Actions | -11 -10 -10 -9 -9 -9 -8 --------- Run | Scr Mat Min Mat Min Exi Min Total 2075 | . 164 552 169 475 618 97 Wait 26 | . 9 4 6 3 1 3 Move 1827 | . 93 518 153 451 533 79 Hop . | . . . . . . . Pick Up 35 | . 1 . 1 8 24 1 Fast Attach 13 | . 5 3 1 . 4 . Attach 12 | . . . . 1 8 3 Detach 1 | . . . . . . 1 Swap 20 | . 3 1 2 3 11 . Drop 29 | . 4 2 2 4 15 2 Fire 109 | . 49 23 4 5 22 6 Melee 3 | . . 1 . . . 2 Ram . | . . . . . . . Kick . | . . . . . . . Crush . | . . . . . . . Escape Stasis . | . . . . . . . Rewire . | . . . . . . . Trap . | . . . . . . . Miscellaneous . | . . . . . . . Route ------- -11/Scrapyard -10/Materials -10/Mines (discovered 2 exits: *Mat x2) -9/Materials -9/Mines -9/Exiles -8/Mines History --------- Turn | Location | Event 1 | -11/Scrapyard | Discovered new exit (range 0) 1 | -11/Scrapyard | Entered Materials 227 | -10/Materials | Identified exit to Mines 252 | -10/Materials | Entered Mines 258 | -10/Mines | Assisted by bots powering up and referring to "LRC-V3" 275 | -10/Mines | Met a Derelict bent on vengeance 308 | -10/Mines | Build established: Mutant 341 | -10/Mines | Discovered new exit (range 10) 395 | -10/Mines | Learned Materials terminal intel 510 | -10/Mines | A weapon hastily lodged in a ceiling crevice suddenly fell to the ground 530 | -10/Mines | Discovered new exit (range 5) 600 | -10/Mines | Learned location of Storage (-8) 762 | -10/Mines | Build established: Scavenger-Mutant 930 | -10/Mines | Entered Materials 930 | -9/Materials | Accompanied by 3 allies 930 | -9/Materials | Evolved 2 slots: Propulsion x1, Weapon x1 931 | -9/Materials | Identified exit to Mines 932 | -9/Materials | Loaded intel: 12 terminal locations 1134 | -9/Materials | Entered Mines 1134 | -9/Mines | Accompanied by 2 allies 1351 | -9/Mines | Met a Derelict testing a Signal Generator 1358 | -9/Mines | Found Signal Generator 1466 | -9/Mines | Learned 4 Materials zone layouts 1676 | -9/Mines | Deemed a non-threat by the Exiles lab entrance 1676 | -9/Mines | Discovered new exit (range 5) 1708 | -9/Mines | Entered Exiles 1708 | -9/Exiles | Accompanied by 1 ally 1709 | -9/Exiles | Identified exit to Mines 1737 | -9/Exiles | Met 8R-AWN 1759 | -9/Exiles | Met EX-HEX 1792 | -9/Exiles | Met EX-BIN 1806 | -9/Exiles | Aligned with FarCom system 1807 | -9/Exiles | Given EX-Vault access code 1834 | -9/Exiles | Opened EX-Vault 1840 | -9/Exiles | Found Prototype Leg 1840 | -9/Exiles | Identified Potential Leg 1846 | -9/Exiles | Found Potential Leg 1860 | -9/Exiles | Found AWS/Gauss 1863 | -9/Exiles | Found Field Lobotomy Kit 1890 | -9/Exiles | Warned to stay clear of 0b10 Research branches 1933 | -9/Exiles | Attacked by the Exiles 1951 | -9/Exiles | Destroyed EX-HEX 1980 | -9/Exiles | Destroyed 8R-AWN 1984 | -9/Exiles | Found Prototype Ballistic Gun 1989 | -9/Exiles | Identified 8R-AWN's Boregun 1995 | -9/Exiles | Found 8R-AWN's Boregun 2010 | -9/Exiles | Lost 3 parts (3w) 2137 | -9/Exiles | Destroyed EX-DEC 2139 | -9/Exiles | Destroyed EX-BIN 2152 | -9/Exiles | Found Prototype Energy Gun 2153 | -9/Exiles | Identified AWS/EX-DEC 2159 | -9/Exiles | Found Prototype Device 2161 | -9/Exiles | Identified System Purifier 2175 | -9/Exiles | Found Deploy-a-Sentry 2328 | -9/Exiles | Learned location of Zion (-7) 2371 | -9/Exiles | Stole four prototypes: Potential Leg, Field Lobotomy Kit, AWS/Gauss, Deploy-a-Sentry 2371 | -9/Exiles | Entered Mines 2390 | -8/Mines | Build established: Mutant 2445 | -8/Mines | P1-3CE came to Exiles' defense 2461 | -8/Mines | Core integrity fell below 50% 2474 | -8/Mines | Core integrity fell below 20% 2477 | -8/Mines | Destroyed by P1-3CE with P1-3CE's Gatling Flakker Last Messages --------------- 02459_ HV Slug penetrates P1-3CE. 02459_ HV Slug penetrates Wall. 02465_ HV Slug penetrates P1-3CE. 02465_ HV Slug penetrates Wall. 02466_ Knocked back. 02467_ Dropped AWS/EX-DEC. 02468_ Knocked back. 02469_ HV Slug penetrates P1-3CE. 02469_ HV Slug penetrates Wall. 02469_ HV Slug penetrates P1-3CE. 02469_ HV Slug penetrates Wall. 02472_ HV Slug penetrates P1-3CE. 02472_ HV Slug penetrates Earth. 02472_ HV Slug penetrates P1-3CE. 02472_ HV Slug penetrates Earth. 02475_ HV Slug penetrates P1-3CE. 02475_ P1-3CE suffers critical hit. 02475_ Destroyed Tractor Beam. 02475_ HV Slug penetrates Earth. 02475_ HV Slug penetrates Wall. Map ----- +----------------------------------------------------+ | ????????????????????????????????? | | ????????????????????????????????? | | ????????????????????????????????? | | ????????????????????????????????? | | ????????????????????????????????? | | ????????????????????????????????? | | ????????????????????????????????? | | ????????????????????????????????? | | ????????????????????????????????? | | ?########???????????????????????? | | ?# #???????????????????????? | | ?# """ #???????????????????????? | | ?# """ #???????????????????????? | | ?# """ #???????????????????????? | | ?# #???????????????????????? | | ???### ##???????? #???????????? | | ?????# #???????## ##?????????? | | ?????# #???????# ##???????? | | ?????# #???????# ???????? | | ?????# #???????? ??????? | | ?????# #????????# ##??????? | | ?????# #????????# ###????? | | ?????# #??#?????# ##???? | | ?????# #? #?????# ###?? | | ?????#%;#;#????#" #?# ### | | ?????#* @;#??### #???# | | ?????##;[;#?## ###### | | ??????#; ;### ][! ### | | ??????##M### # %! ##?? | | ???????# * ### ###### #??? | | ??????#; ##?# #????# #??? | | ??????##;# ##??# #????## ##??? | | ???????# # #???# #?????####???? | | ???????### ##### ##???????????? | | ?????????## #???????????? | | ??????????####### #???????????? | | ????????????????####????????????? | | ????????????????????????????????? | | ????????????????????????????????? | | ????????????????????????????????? | | ????????????????????????????????? | | ????????????????????????????????? | | ????????????????????????????????? | | ????????????????????????????????? | | ????????????????????????????????? | | ????????????????????????????????? | | | | | | | | | +----------------------------------------------------+ Best States ------------- Heat Dissipation 54 Energy Generation 10 Energy Capacity 250 Matter Stores 300 Matter Capacity 300 Sight Range 16 Terrain Scan Density 10 Evasion (%) 40 Item Schematics ----------------- None Robot Schematics ------------------ None Fabricated ------------ Nothing Alien Tech Used ----------------- None Achievements -------------- None Challenges ------------ None Game ------ Seed SegregatorArmorInitializer Manual? 0 Play Time 00:20:53 Cumulative 84.1 hours Start 2020.10.15 @ 20:01:55 End 2020.10.15 @ 20:23:07 Sessions 1 Manual Loads 0 Difficulty Rogue Special Mode None Game No. 81 Rogue 80 Adventurer 0 Explorer 1 Win Type - Total 0 Types 0/0/0/0/0/0/0/0/0 Lore% 50 Gallery% 78 Achievement% 59 Wizard Run 0 Options --------- ASCII 0 Keyboard 0 Movement Numpad Keybinds 0 Fullscreen 1 Font 18/SmallcapsGlow Map View 76x50 Tactical HUD 1 Map Filters NONE Filters NONE Steam 1 RUN: b58b5a4d-e953-4374-a480-d41641c2a002